Cogmind - Beta 12 @@@ ROGUE MODE // 2023.07.07 @ 15:38:41 Player: zapruda Result: Destroyed by S-27 Virus with Autogun Performance ------------- Evolutions (3) 1500 Regions Visited (8) 1600 Robots Destroyed (87) 435 Value Destroyed (2151) 2151 Prototype IDs (19) 380 Alien Tech Used (0) 0 Bonus (470) 470 TOTAL SCORE: 6536 Bonus ------- High Alert Combat Kills 100 Follower Combat Kills 70 Met Data Miner 300 Cogmind --------- Core Integrity 0/700 Matter 268/400 Energy 90/100 System Corruption 5% Temperature Cool (0) Movement Core (50) Location -6/Proximity Caves Parts ------- > --- POWER (1) -------- (None) > --- PROPULSION (2) --- Armored Huge Wheel > --- UTILITY (8) ------ Medium Matter Pod (fused) Advanced Visual Processing Unit Hacking Suite Hacking Suite Hacking Suite > --- WEAPON (2) ------- (None) > --- INVENTORY (5) ---- Improved Deuterium Engine Neutrino Core Improved Core Shielding Makeshift System Shield Advanced Assault Cannon Peak State ------------ > --- POWER ------------ Deuterium Engine > --- PROPULSION ------- Cooled VTOL Module Cooled VTOL Module > --- UTILITY ---------- Weight Redist. System Machine Analyzer Advanced Visual Processing Unit Advanced Signal Interpreter Hacking Suite Hacking Suite Hacking Suite Hacking Suite > --- WEAPON ----------- Gatling Laser Advanced Assault Cannon > --- INVENTORY -------- Light Nuclear Core Improved Flight Unit Gatling Laser [Rating: 47] Favorites ----------- Power Light Ion Engine Engine Light Ion Engine Power Core Light Nuclear Core Propulsion Aluminum Leg Leg Aluminum Leg Wheel Armored Huge Wheel Flight Unit Improved Flight Unit Utility Hacking Suite Device Weight Redist. System Storage Small Storage Unit Processor Machine Analyzer Hackware Hacking Suite Protection Core Shielding Weapon Light Assault Rifle Energy Gun Gatling Laser Energy Cannon EM Pulse Cannon Ballistic Gun Light Assault Rifle Ballistic Cannon Light Cannon Launcher Grenade Launcher Build | -11 -10 -9 -8 -7 -7 -7 -7 -6 ------- Run | Jun Mat Mat Mat Fac Low Low Dat Pro Slots Evolved 6 | . . 2 2 2 . . . . Power . | . . . . . . . . . Propulsion . | . . . . . . . . . Utility 6 | . . 2 2 2 . . . . Weapon . | . . . . . . . . . Parts Attached 106 | . 14 28 14 18 . 26 . 6 Power 11 | . . 3 1 2 . 4 . 1 Engine 8 | . . 3 1 2 . 1 . 1 Core 3 | . . . . . . 3 . . Reactor . | . . . . . . . . . Propulsion 25 | . 3 7 2 6 . 6 . 1 Treads . | . . . . . . . . . Leg 11 | . 3 5 . . . 3 . . Wheel 1 | . . . . . . . . 1 Hover . | . . . . . . . . . Flight 13 | . . 2 2 6 . 3 . . Utility 26 | . 1 11 4 3 . 4 . 3 Device 4 | . . 2 . . . 1 . 1 Storage 3 | . . 2 . . . . . 1 Processor 5 | . . 2 1 2 . . . . Hackware 6 | . . 1 3 1 . 1 . . Protection 8 | . 1 4 . . . 2 . 1 Artifact . | . . . . . . . . . Weapon 44 | . 10 7 7 7 . 12 . 1 Energy Gun 22 | . 2 2 2 5 . 11 . . Energy Cannon 2 | . . . 2 . . . . . Ballistic Gun 7 | . 4 3 . . . . . . Ballistic Cannon 6 | . 1 . 1 2 . 1 . 1 Launcher 7 | . 3 2 2 . . . . . Special Weapon . | . . . . . . . . . Impact Weapon . | . . . . . . . . . Slashing Weapon . | . . . . . . . . . Piercing Weapon . | . . . . . . . . . Special Melee Weapon . | . . . . . . . . . Unidentified Prototypes 1 | . . . . 1 . . . . Parts Lost 35 | . . 12 7 2 . 10 3 1 Power 7 | . . 1 2 . . 3 . 1 Propulsion 7 | . . 4 . . . 2 1 . Utility 10 | . . 3 1 1 . 4 1 . Weapon 11 | . . 4 4 1 . 1 1 . Highest Loss Streak 6 | . . 6 3 1 . 3 3 1 To Critical Strikes . | . . . . . . . . . Average Slot Usage (%) 82 | . 98 91 82 86 92 74 71 38 Engine 6 | . 14 10 5 5 7 1 . 1 Core 1 | . . . . . . 5 6 . Leg 11 | . 28 19 . . . 3 13 . Flight 5 | . . 1 14 11 15 9 . . Device 2 | . . 1 9 7 7 2 . . Storage 5 | . 14 11 1 . . . . 1 Processor 12 | . . 8 9 23 23 19 14 7 Hackware 13 | . . . 28 27 30 18 23 23 Protection 7 | . 12 16 . . . 3 . 1 Energy Gun 5 | . 4 6 . 6 7 7 13 . Ballistic Gun 6 | . 22 8 5 . . . . . Ballistic Cannon 1 | . 1 4 1 1 . . . . Naked Turns . | . . . . . . . . . Heaviest Build 47 | 11 13 20 16 17 17 47 23 10 Greatest Support 30 | 20 20 26 16 18 18 30 30 28 Greatest Overweight (x) 4 | . . 1 . . 1 4 1 . Average Overweight (x) . | . . . . . . . . . Largest Inventory Capacity 8 | 8 8 8 8 5 5 5 5 5 Average Capacity 6 | 8 8 8 5 5 5 5 5 5 Most Carried 8 | 6 8 8 8 5 5 5 5 5 Average Carried 5 | 6 7 6 4 4 4 4 4 4 Final Capacity 8 | 8 8 8 5 5 5 5 5 5 Final Carried 8 | 6 8 8 5 3 5 4 5 5 Class Distribution -------------------- 36% | Hacker-Mutant 31% | Mutant 15% | Hacker-Sprinter 11% | Scavenger-Mutant 5% | Derelict-Mutant Dominant Class ---------------- Mutant | -10/Materials Mutant | -9/Materials Hacker-Mutant | -8/Materials Hacker-Mutant | -7/Factory Hacker-Sprinter | -7/Lower Caves Hacker-Mutant | -7/Lower Caves Hacker-Mutant | -7/Data Miner Hacker-Mutant | -6/Proximity Caves Resources | -11 -10 -9 -8 -7 -7 -7 -7 -6 ----------- Run | Jun Mat Mat Mat Fac Low Low Dat Pro Matter Collected 2203 | 200 256 689 172 180 115 521 . 70 Remotely . | . . . . . . . . . Salvage Created 2625 | . 431 1160 359 285 92 298 . . Parts 151 | . 31 70 17 21 4 8 . . Haulers Intercepted 8 | . 2 3 1 2 . . . . Recyclers Shooed 4 | . . 4 . . . . . . Parts Field Recycled . | . . . . . . . . . Retrieved Matter . | . . . . . . . . . Parts Self-Destructed 19 | . . . . . . 19 . . Prevented . | . . . . . . . . . Kills | -11 -10 -9 -8 -7 -7 -7 -7 -6 ------- Run | Jun Mat Mat Mat Fac Low Low Dat Pro Combat Hostiles Destroyed 62 | . 12 26 10 6 . 8 . . Guns 32 | . 5 15 1 5 . 6 . . Cannons 11 | . . 3 6 1 . 1 . . AOE 17 | . 7 7 3 . . . . . Classes Destroyed 13 | . 6 5 1 . 1 . . . Worker 2 | . . 2 . . . . . . Builder 5 | . 1 3 . 1 . . . . Hauler 8 | . 2 3 1 2 . . . . Recycler 2 | . . 2 . . . . . . Mechanic 1 | . . 1 . . . . . . Operator 2 | . 1 1 . . . . . . Watcher 5 | . 2 3 . . . . . . Swarmer 24 | . 6 10 3 4 . 1 . . Grunt 26 | . 6 11 4 1 . 4 . . Brawler 2 | . . 1 1 . . . . . Sentry 6 | . . 4 1 . . 1 . . Hunter 3 | . . . 1 1 . 1 . . Decomposer 3 | . . . . . 3 . . . Samaritan 1 | . . . . . 1 . . . Thug 1 | . . . . . . 1 . . Best Kill Streak 10 | . 6 10 4 4 . 2 . . Combat Bots Only 10 | . 5 10 4 4 . 2 . . Max Kills in Single Turn 3 | . 3 3 2 1 1 1 . . Gunslinging . | . . . . . . . . . Exploded 3 | . 3 3 2 . . . . . Melee . | . . . . . . . . . Uniques/NPCs Destroyed . | . . . . . . . . . Combat | -11 -10 -9 -8 -7 -7 -7 -7 -6 -------- Run | Jun Mat Mat Mat Fac Low Low Dat Pro Damage Taken 4697 | . 246 1697 971 237 23 888 504 131 Core 1407 | . 34 254 412 45 23 178 415 46 Absorbed by Shields . | . . . . . . . . . Redirected to Shielding 63 | . 4 49 . . . . . 10 Regen/Repaired (Parts) 135 | . . . . 135 . . . . Core Remaining (%) 61 | 100 86 36 25 . . . . . Volleys Fired 319 | . 54 112 33 52 11 51 1 5 Largest 2 | . 2 2 2 2 1 2 2 1 Hottest 160 | . 60 101 107 100 80 160 155 48 Shots Fired 473 | . 103 184 44 56 11 68 2 5 Gun 328 | . 99 129 15 25 11 47 2 . Cannon 126 | . . 47 22 31 . 21 . 5 Launcher 19 | . 4 8 7 . . . . . Special . | . . . . . . . . . Kinetic 288 | . 86 118 27 31 . 21 . 5 Thermal 94 | . . 24 . 10 11 47 2 . Explosive 17 | . 4 8 5 . . . . . Electromagnetic 74 | . 13 34 12 15 . . . . Robot Hit Streak 9 | . 8 7 7 9 5 7 9 1 Robot Miss Streak 5 | . 4 4 3 5 3 4 2 3 Penetration Max . | . . . . . . . . . Secondary Targets 1 | . . 1 . . . . . . Max Gunslinging Chain 1 | . . 1 . . . . . . Shots Hit Robots 287 | . 57 108 30 30 11 49 1 1 Core Hits 162 | . 33 55 26 16 7 24 1 . Critical Kills . | . . . . . . . . . Critical Parts Destroyed . | . . . . . . . . . Critical Strikes 9 | . . 5 1 1 . 2 . . Burn 5 | . . 3 . . . 2 . . Blast 3 | . . 1 1 1 . . . . Corrupt 1 | . . 1 . . . . . . Melee Attacks . | . . . . . . . . . Impact . | . . . . . . . . . Slashing . | . . . . . . . . . Piercing . | . . . . . . . . . Sneak Attacks . | . . . . . . . . . Combat Hostiles . | . . . . . . . . . Follow-up Attacks . | . . . . . . . . . Damage Inflicted 6333 | . 1075 2302 1099 626 175 1015 12 29 Guns 2977 | . 454 1123 69 402 175 742 12 . Cannons 1524 | . . 575 444 203 . 273 . 29 Explosions 1830 | . 621 602 586 21 . . . . Melee . | . . . . . . . . . Ramming 2 | . . 2 . . . . . . Kinetic 2261 | . 380 1044 332 203 . 273 . 29 Thermal 1532 | . 70 356 . 177 175 742 12 . Explosive 1551 | . 551 556 444 . . . . . Electromagnetic 987 | . 74 344 323 246 . . . . Impact . | . . . . . . . . . Slashing . | . . . . . . . . . Piercing . | . . . . . . . . . Highest Corruption 5 | . . 1 5 1 1 5 5 5 Average Corruption 1 | . . 1 5 1 1 1 5 5 Corruption Purged . | . . . . . . . . . Corruption Blocked . | . . . . . . . . . Effects 29 | . . 7 3 2 . 6 2 9 Message Errors 6 | . . 1 . . . 2 1 2 Matter Fused 6 | . . 3 . 1 . . . 2 Heat Flow Errors 3 | . . . 1 . . . . 2 Energy Discharges 1 | . . 1 . . . . . . Parts Rejected 2 | . . . . . . 1 1 . Parts Fused 1 | . . . . . . . . 1 Data Loss (minor) 5 | . . 1 1 . . 1 . 2 Data Loss (major) 2 | . . . . 1 . 1 . . Misfires 1 | . . . . . . 1 . . Weapon Failures 2 | . . 1 1 . . . . . Overload Shots . | . . . . . . . . . Overflow Damage 76 | . 1 52 16 1 . . . 6 Projectiles 22 | . . . 16 . . . . 6 Explosions 54 | . 1 52 . 1 . . . . Melee . | . . . . . . . . . Knockbacks 9 | . . 3 4 2 . . . . Impact . | . . . . . . . . . Kinetic 7 | . . 2 3 2 . . . . Secondary 2 | . . 1 1 . . . . . Self-Inflicted Damage 142 | . 4 88 . 50 . . . . Shots 7 | . 1 3 . 3 . . . . Rammed . | . . . . . . . . . Targets Rammed 1 | . . 1 . . . . . . Kicked 1 | . . 1 . . . . . . Crushed . | . . . . . . . . . Highest Temperature 384 | . 131 207 90 181 96 384 75 106 Average Temperature 65 | . 50 44 23 68 45 120 38 58 Received Heat Transfer 1308 | . 105 600 396 9 . 198 . . Siege Activations . | . . . . . . . . . Robots Corrupted 2 | . 1 . . 1 . . . . Combat Hostiles . | . . . . . . . . . Parts Fried 5 | . 3 . 1 1 . . . . Impact Corruptions . | . . . . . . . . . Robots Melted 2 | . . 1 . . . 1 . . Combat Hostiles 2 | . . 1 . . . 1 . . Parts Melted 5 | . . 3 . 1 . 1 . . Heat Transferred 3397 | . 150 938 . 400 400 1484 25 . Parts Sabotaged . | . . . . . . . . . Parts Stolen . | . . . . . . . . . Parts Stripped . | . . . . . . . . . Power Chain Reactions 3 | . 1 1 . 1 . . . . Missiles Intercepted . | . . . . . . . . . Alert | -11 -10 -9 -8 -7 -7 -7 -7 -6 ------- Run | Jun Mat Mat Mat Fac Low Low Dat Pro Peak Influence 662 | . 257 587 662 474 . . . . Initial 303 | . . 96 247 303 . . . . Average 268 | . 130 272 444 375 . . . . Maximum Alert Level 2 | . 1 2 2 2 . . . . Low Security (%) 33 | 100 67 34 . . . . . . Level 1 46 | . 32 47 50 61 . . . . Level 2 20 | . . 18 49 38 . . . . Level 3 . | . . . . . . . . . Level 4 . | . . . . . . . . . Level 5 . | . . . . . . . . . High Security . | . . . . . . . . . Max Security . | . . . . . . . . . Squads Dispatched 13 | . 2 1 4 4 . 1 . 1 Investigation 1 | . 1 . . . . . . . Extermination 1 | . . . . 1 . . . . Reinforcement 7 | . 1 1 2 3 . . . . Assault 2 | . . . . . . 1 . 1 Garrison 2 | . . . 2 . . . . . Intercept . | . . . . . . . . . Searches Triggered . | . . . . . . . . . Construction Impeded 1 | . . 1 . . . . . . Haulers Reinforced . | . . . . . . . . . Active Scanning Responses . | . . . . . . . . . Cargo Convoy Interrupts . | . . . . . . . . . Stealth | -11 -10 -9 -8 -7 -7 -7 -7 -6 --------- Run | Jun Mat Mat Mat Fac Low Low Dat Pro Distress Signals 8 | . 1 5 2 . . . . . Communications Jammed . | . . . . . . . . . Distress Signals . | . . . . . . . . . Times Spotted 144 | . 20 37 31 9 3 32 4 8 Peak Tracking Total 14 | . 6 7 14 5 4 8 4 6 Tactical Retreats 25 | . . 4 5 1 3 10 . 2 Traps | -11 -10 -9 -8 -7 -7 -7 -7 -6 ------- Run | Jun Mat Mat Mat Fac Low Low Dat Pro Traps Triggered 2 | . 2 . . . . . . . Indirectly . | . . . . . . . . . Trap Hack Attempts . | . . . . . . . . . Triggered . | . . . . . . . . . Disarmed . | . . . . . . . . . Reprogrammed . | . . . . . . . . . Reused . | . . . . . . . . . Traps Extracted . | . . . . . . . . . Installed . | . . . . . . . . . Triggered 1 | . 1 . . . . . . . Machines | -11 -10 -9 -8 -7 -7 -7 -7 -6 ---------- Run | Jun Mat Mat Mat Fac Low Low Dat Pro Machines Disabled 7 | . . 2 1 2 . 1 1 . Max in Single Turn 2 | . . 1 1 2 . 1 1 . Machines Repaired . | . . . . . . . . . Machines Sabotaged . | . . . . . . . . . Overloaded Fab Kills . | . . . . . . . . . Hacking | -11 -10 -9 -8 -7 -7 -7 -7 -6 --------- Run | Jun Mat Mat Mat Fac Low Low Dat Pro Machines Accessed 20 | . 3 3 4 6 . . 4 . Terminals 11 | . 2 2 4 3 . . . . Fabricators . | . . . . . . . . . Repair Stations 1 | . . . . 1 . . . . Recycling Units 2 | . 1 . . 1 . . . . Scanalyzers 2 | . . 1 . 1 . . . . Garrison Access . | . . . . . . . . . Total Hacks 76 | . 6 8 16 16 . . 30 . Successful 61 | . 4 5 11 11 . . 30 . Failed 15 | . 2 3 5 5 . . . . Catastrophic 3 | . . 1 . 2 . . . . Database Lockouts . | . . . . . . . . . Manual 23 | . 3 5 12 3 . . . . Terminals 31 | . 4 5 16 6 . . . . Fabricators . | . . . . . . . . . Repair Stations 6 | . . . . 6 . . . . Recycling Units 3 | . 2 . . 1 . . . . Scanalyzers 6 | . . 3 . 3 . . . . Garrison Access . | . . . . . . . . . Terminal Hacks 45 | . 1 3 9 2 . . 30 . Record 11 | . . . . . . . 11 . Part Schematic 14 | . . . 2 . . . 12 . Robot Schematic 4 | . . . . . . . 4 . Prototype ID Bank 7 | . 1 2 1 . . . 3 . Terminal Index 2 | . . . 1 1 . . . . Scanalyzer Index 1 | . . . 1 . . . . . Garrison Index 1 | . . . 1 . . . . . Alert Level 1 | . . . . 1 . . . . Locate Traps 1 | . . . 1 . . . . . Hauler Manifests 2 | . . 1 1 . . . . . Registered Prototypes 1 | . . . 1 . . . . . Fabricator Hacks . | . . . . . . . . . Repair Station Hacks 6 | . . . . 6 . . . . Scan Component 3 | . . . . 3 . . . . Repair 3 | . . . . 3 . . . . Recycling Unit Hacks 2 | . 1 . . 1 . . . . Retrieve Components 2 | . 1 . . 1 . . . . Scanalyzer 4 | . . 2 . 2 . . . . Insert Component 2 | . . 1 . 1 . . . . Analyze 2 | . . 1 . 1 . . . . Garrison Access Hacks . | . . . . . . . . . Unauthorized Hacks 4 | . 2 . 2 . . . . . Terminals 4 | . 2 . 2 . . . . . Track 2 | . 1 . 1 . . . . . Assimilate 2 | . 1 . 1 . . . . . Fabricators . | . . . . . . . . . Repair Stations . | . . . . . . . . . Recycling Units . | . . . . . . . . . Scanalyzers . | . . . . . . . . . Garrison Access . | . . . . . . . . . Data Cores Recovered . | . . . . . . . . . Used . | . . . . . . . . . Hacking Detections 15 | . 3 3 3 6 . . . . Full Trace Events . | . . . . . . . . . Feedback Events . | . . . . . . . . . Feedback Blocked . | . . . . . . . . . Robot Schematics Acquired 4 | . . . . . . . 4 . Robots Built . | . . . . . . . . . Authchips . | . . . . . . . . . Time . | . . . . . . . . . Total Robot Build Rating . | . . . . . . . . . Part Schematics Acquired 16 | . . 1 2 1 . . 12 . Parts Built . | . . . . . . . . . Authchips . | . . . . . . . . . Time . | . . . . . . . . . Total Part Build Rating . | . . . . . . . . . Parts Repaired 3 | . . . . 3 . . . . Time 159 | . . . . 159 . . . . Parts Recycled . | . . . . . . . . . Recycled Matter . | . . . . . . . . . Retrieved Matter . | . . . . . . . . . Retrieved Components 12 | . 9 . . 3 . . . . Parts Scanalyzed 2 | . . 1 . 1 . . . . Part Schematics Acquired 2 | . . 1 . 1 . . . . Parts Damaged . | . . . . . . . . . Bothacking | -11 -10 -9 -8 -7 -7 -7 -7 -6 ------------ Run | Jun Mat Mat Mat Fac Low Low Dat Pro Used RIF Installer . | . . . . . . . . . Robots Hacked . | . . . . . . . . . Non-combat . | . . . . . . . . . Combat . | . . . . . . . . . Robot Hacks Applied . | . . . . . . . . . Relay Couplers Released . | . . . . . . . . . Fabnet Peak Effective % . | . . . . . . . . . Robots Rewired 1 | . . . . . . 1 . . Allies Hacked . | . . . . . . . . . Hacks Repelled . | . . . . . . . . . Allies | -11 -10 -9 -8 -7 -7 -7 -7 -6 -------- Run | Jun Mat Mat Mat Fac Low Low Dat Pro Total Allies 2 | . . . 1 . . 1 . . Largest Group 1 | . . . 1 . . 1 . . Highest-Rated Group 32 | . . . 10 . . 32 . . Highest-Rated Ally 32 | . . . 10 . . 32 . . Total Orders 3 | . . . 1 . . 2 . . STAY 1 | . . . . . . 1 . . ROAM 1 | . . . 1 . . . . . GUARD 1 | . . . . . . 1 . . Ally Attacks 8 | . . . . . . 8 . . Total Damage 359 | . . . . . . 359 . . Kills 2 | . . . . . . 2 . . Allies Corrupted . | . . . . . . . . . Allies Melted . | . . . . . . . . . Intel | -11 -10 -9 -8 -7 -7 -7 -7 -6 ------- Run | Jun Mat Mat Mat Fac Low Low Dat Pro Robot Analysis Total . | . . . . . . . . . Derelict Logs Recovered 7 | . . . . . 3 1 . 3 Drone Launches . | . . . . . . . . . Drone Recoveries . | . . . . . . . . . Exploration | -11 -10 -9 -8 -7 -7 -7 -7 -6 ------------- Run | Jun Mat Mat Mat Fac Low Low Dat Pro Turns Passed 4029 | 3 697 1014 226 500 189 955 111 334 Spaces Moved 4255 | 3 428 603 317 433 501 1309 101 560 Core 527 | . . . . . . 14 21 492 Treads . | . . . . . . . . . Legs 1155 | 3 428 504 . . . 140 80 . Wheels 68 | . . . . . . . . 68 Hover . | . . . . . . . . . Flight 2505 | . . 99 317 433 501 1155 . . Fastest Speed 26 | 120 120 37 37 29 29 26 50 50 Average Speed 64 | 120 120 107 37 35 32 55 106 56 Slowest Speed 400 | 120 120 190 40 40 100 400 190 100 Overloaded Moves 349 | . . . . 14 6 329 . . Propulsion Burnouts 2 | . . . . . . 2 . . Robots Hopped 11 | . . . 7 1 . 3 . . Cave-ins Triggered . | . . . . . . . . . Exploration Rate (%) 53 | 2 68 63 40 10 68 94 82 51 Regions Visited 8 Branch Regions 4 Pre-discovered Areas 1 | . . . . . . . 1 . Known Exits Taken 4 | . . . . 1 1 1 1 . Unknown Exits Taken 4 | 1 1 1 1 . . . . . Scrap Searched 14 | . . . . . 2 8 . 4 Spaces Dug 9 | . . . . 9 . . . . Terrain Destroyed 126 | . 24 51 36 12 . 1 . 2 Melee . | . . . . . . . . . Projectile 14 | . . . 1 10 . 1 . 2 AOE 112 | . 24 51 35 2 . . . . Terrain Rammed . | . . . . . . . . . Walls Destroyed . | . . . . . . . . . Machines Disabled . | . . . . . . . . . Actions | -11 -10 -9 -8 -7 -7 -7 -7 -6 --------- Run | Jun Mat Mat Mat Fac Low Low Dat Pro Total 5065 | 2 523 788 373 720 513 1468 103 575 Wait 273 | . 9 3 4 199 . 58 . . Move 4226 | 2 427 602 302 430 500 1303 100 560 Hop 10 | . . . 7 1 . 2 . . Pick Up 65 | . 11 25 7 10 1 10 . 1 Fast Attach 17 | . 2 3 1 4 . 4 . 3 Attach 62 | . 2 15 11 10 . 21 . 3 Detach 21 | . . . 2 4 1 11 1 2 Swap 27 | . 10 10 2 4 . 1 . . Drop 43 | . 8 17 4 6 . 6 1 1 Fire 319 | . 54 112 33 52 11 51 1 5 Melee . | . . . . . . . . . Ram . | . . . . . . . . . Kick 1 | . . 1 . . . . . . Crush . | . . . . . . . . . Escape Stasis . | . . . . . . . . . Rewire 1 | . . . . . . 1 . . Trap . | . . . . . . . . . Miscellaneous . | . . . . . . . . . Route ------- -11/Junkyard -10/Materials (discovered 3 exits: *Mat x2 / [*Min]) -9/Materials (discovered 5 exits: *Mat x2 / [*Min x2] / [*Sto]) -8/Materials -7/Factory -7/Lower Caves -7/Lower Caves (discovered 2 exits: *Fac / *Dat) -7/Data Miner -6/Proximity Caves History --------- Turn | Location | Event 1 | -11/Junkyard | Discovered new exit (range 0) 4 | -11/Junkyard | Entered Materials 171 | -10/Materials | Discovered new exit (range 12) 273 | -10/Materials | Discovered new exit (range 16) 315 | -10/Materials | Build established: Mutant 465 | -10/Materials | Discovered new exit (range 7) 701 | -10/Materials | Entered another Materials area 701 | -9/Materials | Evolved 2 slots: Utility x2 703 | -9/Materials | Discovered new exit (range 15) 976 | -9/Materials | Discovered new exit (range 12) 1111 | -9/Materials | Lost 6 parts (2n2u2w) 1289 | -9/Materials | Lost 3 parts (1p1n1w) 1418 | -9/Materials | Discovered new exit (range 15) 1624 | -9/Materials | Core integrity fell below 50% 1670 | -9/Materials | Destroyed 10 combat bots 1698 | -9/Materials | Discovered new exit (range 12) 1709 | -9/Materials | Discovered new exit (range 16) 1715 | -9/Materials | Entered another Materials area 1715 | -8/Materials | Evolved 2 slots: Utility x2 1758 | -8/Materials | Garrison activated, responded to threat 1879 | -8/Materials | Core integrity fell below 50% 1884 | -8/Materials | Lost 3 parts (1p1u1w) 1939 | -8/Materials | Discovered new exit (range 7) 1941 | -8/Materials | Entered Factory 1941 | -7/Factory | Evolved 2 slots: Utility x2 2055 | -7/Factory | Build established: Hacker-Mutant 2235 | -7/Factory | Repaired Cld. VTOL Module 2287 | -7/Factory | Repaired Imp. Flight Unit 2327 | -7/Factory | Repaired Deuterium Engine 2401 | -7/Factory | Discovered new exit (range 6) 2424 | -7/Factory | Identified exit to Lower Caves 2441 | -7/Factory | Entered Lower Caves 2524 | -7/Lower Caves | Learned Factory security intel 2594 | -7/Lower Caves | Learned location of 1 exit from Factory 2618 | -7/Lower Caves | Discovered new exit (range 17) 2630 | -7/Lower Caves | Identified exit to Lower Caves 2630 | -7/Lower Caves | Entered another Lower Caves area 2654 | -7/Lower Caves | Build established: Hacker-Sprinter 2663 | -7/Lower Caves | Attracted the attention of an 0b10 checkpoint 2667 | -7/Lower Caves | Discovered new exit (range 11) 2678 | -7/Lower Caves | Identified exit to Factory 2819 | -7/Lower Caves | Lost 3 parts (1p2u) 2856 | -7/Lower Caves | Attracted the attention of an 0b10 outpost 2897 | -7/Lower Caves | Attacked by a faux Warlord 2931 | -7/Lower Caves | Lost 3 parts (1n1u1w) 2952 | -7/Lower Caves | Discovered new exit (range 5) 2953 | -7/Lower Caves | Identified exit to Data Miner 2969 | -7/Lower Caves | Learned 4 Factory zone layouts 3585 | -7/Lower Caves | Entered Data Miner 3585 | -7/Data Miner | Discovered new exit (range 6) 3597 | -7/Data Miner | Identified exit to Proximity Caves 3609 | -7/Data Miner | Met Data Miner 3637 | -7/Data Miner | Learned location of Section 7 (-2) 3637 | -7/Data Miner | Acquired the access code to Warlord's prototype stash 3656 | -7/Data Miner | Received God Mode back door access code from Data Miner 3672 | -7/Data Miner | Data Conduit disabled 3688 | -7/Data Miner | Core integrity fell below 50% 3692 | -7/Data Miner | Core integrity fell below 20% 3696 | -7/Data Miner | Entered Proximity Caves 3720 | -6/Proximity Caves | Lost 3 parts (1n1u1w) 3745 | -6/Proximity Caves | Build established: Hacker-Mutant 3867 | -6/Proximity Caves | Learned Factory interactive machine intel 3884 | -6/Proximity Caves | Learned Factory trap positions 4007 | -6/Proximity Caves | Learned Factory machine intel 4009 | -6/Proximity Caves | Attracted the attention of an 0b10 outpost 4030 | -6/Proximity Caves | Destroyed by S-27 Virus with Autogun Last Messages --------------- 03943_ Acquired 10 matter. 03945_ Acquired Unknown Storage. 03945_ Identified Med. Matter Pod. 03953_ Searching scrap... 03953_ Found Mak. Salvage Targeting Computer. 03953_ Found Imp. Core Shielding. 03953_ Found Hvy. Plasma Cannon. 03953_ Found Energy Filter. 03953_ Found 33 Matter. 03954_ Acquired 33 matter. 03955_ Acquired Imp. Core Shielding. 04003_ System corrupted: Med. Matter Pod fused. 04007_ Acquired derelict log, extracted data. Data stored: Factory machine intel. 04008_ Penetrated by Slug. 04009_ Y-64 Sentinel: "DETECTED UNIDENTIFIED DERELICT." 04013_ Y-64 Sentinel: "REQUESTING BACKUP." 04014_ Destroyed VTOL Module. 04016_ Lgt. Ion Engine destroyed. 04017_ Penetrated by Slug. Map ----- +----------------------------------------------------+ | ?####???????????## #######?????## #????????????? | | ## #????????????####?# ! ##????## #????????????? | | #????????????????##!% #???## #????????????? | | #???????########## ##### #????????????? | | #####???# #????????????? | | ## #???# #????????????? | | ##??# ######### ## ## ##????????????? | | #??# #???????# #########?###?????????? | | ### #?# #???###?## ##????????# ?????????? | | #?# ###?# #??## #### #????????# ?????????? | | ??# ##???# #??# #???????# ?????????? | | ??## ##????# #?## ########?##### ?????????? | | ???## ####### ### ##??#### #?????????? | | ######## ## ##???# #????????#? | | #?# ####### #???? #??????? ## | | #?# ##???## ##### #?????? # | | # ### ##### #????## # | | ### ### ### #?### # | | ??## ! ### #" # ## #? | | ???## ##### % #???? #" # # #?? | | ????# #??# ##???? #??# ## #??? | | ????## ##?# #?????# #???# %## #??? | | ??#### ### ######### #" # ## #??? | | ??# ## ## ]#??# ##s#""""??# " #??? | | ??# ## !#??# ######## #???? | | ?## ## ###! #?## @ b Y ##???? | | ## #######?# ### ### ;## #????? | | #???????# ## ### #????? | | #???????# ### ##### #????? | | #???????# #?# #??# #????? | | ###???????## #?# ##??# ??? | | ###??????????## #?#### ###??? #?? | | ##?????????????## ##???## ##????? ###?? | | #???????????????# ##???## #??????## ##???? | | ????????????????## ####### #????????# ###????? | | ?????????????????## ###?????????####??????? | | ??????????????????## #?????????????????????? | | ???????????????????#########?????????????????????? | | ?????????????????????????????????????????????????? | | ?????????????????????????????????????????????????? | | ?????????????????????????????????????????????????? | | ?????????????????????????????????????????????????? | | ?????????????????????????????????????????????????? | | ?????????????????????????????????????????????????? | | ?????????????????????????????????????????????????? | | ?????????????????????????????????????????????????? | | ?????????????????????????????????????????????????? | | ?????????????????????????????????????????????????? | | ?????????????????????????????????????????????????? | | ?????????????????????????????????????????????????? | +----------------------------------------------------+ Best States ------------- Heat Dissipation 34 Energy Generation 19 Energy Capacity 315 Matter Stores 303 Matter Capacity 400 Sight Range 20 Terrain Scan Density 10 Additional Mass Support 6 Armor Coverage 375 Resistance: KI 30 Resistance: TH 10 Resistance: EX 25 Core Shielding 30 Evasion (%) 64 Targeting Accuracy 8 Offensive Hacking 40 Item Schematics ----------------- Hacking Suite | -9/Materials | Scanalyzed System Shield | -8/Materials | Hacked VTOL Module | -8/Materials | Hacked Imp. VTOL Module | -7/Factory | Scanalyzed Combat Drone Bay | -7/Data Miner | Free Lgt. Regenerative Plating | -7/Data Miner | Free Biomechanical Wings | -7/Data Miner | Free Exp. Targeting Computer | -7/Data Miner | Free Antimatter Cannon | -7/Data Miner | Free Antigrav System | -7/Data Miner | Free Imp. Corruption Screen | -7/Data Miner | Free Lance | -7/Data Miner | Free Fission Core | -7/Data Miner | Free Remote Force Field | -7/Data Miner | Free Adv. Thermal Generator | -7/Data Miner | Free Dispersion Rifle | -7/Data Miner | Free Robot Schematics ------------------ A-15 Conveyor | -7/Data Miner | Free S-27 Virus | -7/Data Miner | Free G-47 Trooper | -7/Data Miner | Free B-48 Gladiator | -7/Data Miner | Free Fabricated ------------ Nothing Alien Tech Used ----------------- None Achievements -------------- None Challenges ------------ None Game ------ Seed CompactHugePod Manual? 0 Play Time 00:56:09 Cumulative 82.9 hours Start 2023.07.07 @ 14:43:58 End 2023.07.07 @ 15:38:41 Sessions 1 Manual Loads 0 Difficulty Rogue Special Mode None Game No. 126 Rogue 126 Adventurer 0 Explorer 0 Win Type - Total 0 Types 0/0/0/0/0/0/0/0/0 Lore% 30 Gallery% 52 Achievement% 35 Wizard Run 0 Options --------- ASCII 0 Keyboard 0 Movement Mouse Keybinds 0 Fullscreen 2 Font 18/SmallcapsGlow Map View 76x50 Tactical HUD 1 Map Filters NONE Filters NONE Steam 1 RUN: 3d065a7b-3485-451f-b8ad-a1119c6dbe5a